Cogmind - Beta 15 @@@ ROGUE MODE // 2025.06.07 @ 16:07:08 Player: Candle Result: Destroyed by as-40700 with Assembled Rifle Performance ------------- Evolutions (0) 0 Regions Visited (2) 400 Robots Destroyed (35) 175 Value Destroyed (780) 780 Prototype IDs (2) 40 Alien Tech Used (0) 0 Bonus (0) 0 TOTAL SCORE: 1395 Bonus ------- None Cogmind --------- Core Integrity 0/250 Matter 300/300 Energy 250/250 System Corruption 11% Temperature Cool (76) Movement Core (500) Ox9 Location -10/Mines Parts ------- > --- POWER (1) -------- Ion Engine > --- PROPULSION (2) --- (None) > --- UTILITY (2) ------ Large Storage Unit > --- WEAPON (2) ------- Medium Laser Particle Gun > --- INVENTORY (15) --- Nuclear Core Light Treads Light Treads Compact Wheel Improved Heat Sink Compact Matter Pod (150) Improved Terrain Scanner Improved Terrain Scan Processor Actuator Array Hacking Suite Heavy Particle Cannon Light Assault Rifle High-powered Shotgun Mining Laser Blade Saw Peak State ------------ > --- POWER ------------ Ion Engine > --- PROPULSION ------- Light Treads Light Treads > --- UTILITY ---------- Large Storage Unit Hacking Suite > --- WEAPON ----------- Medium Laser Particle Gun > --- INVENTORY -------- Ion Engine Nuclear Core Light Treads Light Treads Compact Wheel Improved Heat Sink Improved Terrain Scanner Improved Terrain Scan Processor Actuator Array Hacking Suite Light Assault Rifle High-powered Shotgun Mining Laser Blade Saw [Rating: 13] Favorites ----------- Power Ion Engine Engine Ion Engine Propulsion Light Treads Treads Light Treads Utility Medium Storage Unit Device Seismic Detector Storage Medium Storage Unit Hackware Hacking Suite Weapon Light Cannon Energy Gun Small Laser Ballistic Gun Light Assault Rifle Ballistic Cannon Light Cannon Build | -11 -10 -10 ------- Run | Yrd Mat Min Slots Evolved . | . . . Power . | . . . Propulsion . | . . . Utility . | . . . Weapon . | . . . Parts Attached 25 | 7 17 1 Power 8 | 1 6 1 Engine 8 | 1 6 1 Core . | . . . Reactor . | . . . Propulsion 4 | 2 2 . Treads 4 | 2 2 . Leg . | . . . Wheel . | . . . Hover . | . . . Flight . | . . . Utility 5 | 2 3 . Device 1 | 1 . . Storage 3 | 1 2 . Processor . | . . . Hackware 1 | . 1 . Protection . | . . . Artifact . | . . . Weapon 8 | 2 6 . Energy Gun 5 | 1 4 . Energy Cannon . | . . . Ballistic Gun 1 | 1 . . Ballistic Cannon 2 | . 2 . Launcher . | . . . Special Weapon . | . . . Impact Weapon . | . . . Slashing Weapon . | . . . Piercing Weapon . | . . . Special Melee Weapon . | . . . Unidentified Prototypes . | . . . Parts Lost 3 | . . 3 Power . | . . . Propulsion 2 | . . 2 Utility 1 | . . 1 Weapon . | . . . Highest Loss Streak 3 | . . 3 To Critical Strikes . | . . . Average Backups 8 | 2 8 13 Power 1 | 1 1 1 Propulsion 2 | . 2 3 Utility 2 | . 1 4 Weapon 2 | . 2 4 Tool/Special . | . . . Unused Backups 15 | . 2 13 Power 2 | . 1 1 Propulsion 2 | . . 2 Utility 7 | . 1 6 Weapon 4 | . . 4 Tool/Special . | . . . Average Slot Usage (%) 100 | . 100 100 Engine 14 | . 14 14 Treads 28 | . 28 28 Device 7 | . 8 . Storage 14 | . 14 14 Hackware 6 | . 5 14 Energy Gun 11 | . 9 28 Ballistic Gun 2 | . 3 . Ballistic Cannon 13 | . 15 . Peak Build Rating 13 | 7 11 13 Average Rating 9 | 5 8 12 On Entrance 6 | . 7 11 Naked Turns . | . . . Heaviest Build 30 | 13 30 30 Greatest Support 40 | 40 40 40 Greatest Overweight (x) 2 | 2 1 . Average Overweight (x) . | . . . Largest Inventory Capacity 15 | 8 15 15 Average Capacity 10 | 7 9 15 Most Carried 15 | 4 10 15 Average Carried 8 | 2 8 13 Final Capacity 15 | 8 15 15 Final Carried 15 | 4 8 15 Class Distribution -------------------- 67% | Mutant 32% | Scavenger-Mutant Dominant Class ---------------- Mutant | -10/Materials Mutant | -10/Mines Resources | -11 -10 -10 ----------- Run | Yrd Mat Min Matter Collected 1125 | 279 826 20 Remotely . | . . . Salvage Created 889 | 115 726 48 Parts 61 | 8 52 1 Haulers Intercepted 2 | . 2 . Recyclers Shooed . | . . . Parts Field Recycled . | . . . Retrieved Matter . | . . . Parts Self-Destructed . | . . . Prevented . | . . . Kills | -11 -10 -10 ------- Run | Yrd Mat Min Combat Hostiles Destroyed 24 | . 22 2 Guns 9 | . 7 2 Cannons 15 | . 15 . Classes Destroyed 9 | 2 6 1 Builder 1 | . 1 . Tunneler 3 | 2 1 . Hauler 2 | . 2 . Recycler 1 | 1 . . Operator 2 | . 2 . Watcher 3 | . 3 . Swarmer 6 | . 6 . Grunt 17 | . 16 1 Assembled 1 | . . 1 Best Kill Streak 4 | 2 4 1 Combat Bots Only 4 | . 4 1 Max Kills in Single Turn 2 | 1 2 1 Gunslinging . | . . . Exploded . | . . . Melee . | . . . Uniques/NPCs Destroyed . | . . . Combat | -11 -10 -10 -------- Run | Yrd Mat Min Hostile Shots Fired 143 | . 109 34 Missed 41 | . 32 9 Hits 102 | . 77 25 Melee 3 | . . 3 Projectile 99 | . 77 22 Damage Taken 1246 | . 821 425 Core 264 | . 167 97 Absorbed by Shields . | . . . Regen/Repaired (Parts) 101 | . 101 . Core Remaining (%) 100 | 100 . . Volleys Fired 128 | 9 111 8 Largest 2 | 2 2 2 Hottest 115 | 60 80 115 Shots Fired 254 | 18 220 16 Gun 139 | 18 105 16 Cannon 115 | . 115 . Launcher . | . . . Special . | . . . Kinetic 164 | 9 155 . Thermal 90 | 9 65 16 Explosive . | . . . Electromagnetic . | . . . Robot Hit Streak 15 | 5 15 5 Robot Miss Streak 4 | 2 4 2 Penetration Max . | . . . Secondary Targets 1 | . 1 . Max Gunslinging Chain 1 | . 1 . Shots Hit Robots 159 | 11 136 12 Core Hits 56 | 5 46 5 Critical Kills . | . . . Critical Parts Destroyed 1 | . 1 . Critical Strikes 2 | . 2 . Destroy 1 | . 1 . Blast 1 | . 1 . Melee Attacks . | . . . Impact . | . . . Slashing . | . . . Piercing . | . . . Sneak Attacks . | . . . Combat Hostiles . | . . . Follow-up Attacks . | . . . Damage Inflicted 2151 | 103 1876 172 Guns 989 | 103 714 172 Cannons 1162 | . 1162 . Explosions . | . . . Melee . | . . . Ramming . | . . . Kinetic 1416 | 39 1377 . Thermal 735 | 64 499 172 Explosive . | . . . Electromagnetic . | . . . Impact . | . . . Slashing . | . . . Piercing . | . . . Highest Corruption 11 | . 2 11 Average Corruption 2 | . 2 2 Corruption Purged . | . . . Corruption Blocked . | . . . Effects 47 | . 42 5 Message Errors 10 | . 8 2 Matter Fused 12 | . 12 . Heat Flow Errors 4 | . 4 . Energy Discharges 8 | . 6 2 Data Loss (minor) 5 | . 4 1 Misfires 3 | . 3 . Alerts 3 | . 3 . Weapon Failures 2 | . 2 . Overload Shots . | . . . Overflow Damage 48 | . 48 . Projectiles 48 | . 48 . Explosions . | . . . Melee . | . . . Knockbacks 14 | . 14 . Impact . | . . . Kinetic 12 | . 12 . Secondary 2 | . 2 . Self-Inflicted Damage . | . . . Shots . | . . . Rammed . | . . . Targets Rammed . | . . . Kicked . | . . . Crushed . | . . . Highest Temperature 257 | 40 257 246 Average Temperature 65 | 18 60 125 Received Heat Transfer 417 | . 375 42 Effects 3 | . 2 1 Energy Bleed 2 | . 1 1 Interference 1 | . 1 . Siege Activations . | . . . Martial Activations . | . . . Shielding Activations . | . . . Robots Disrupted . | . . . Combat Hostiles . | . . . Robots Corrupted . | . . . Combat Hostiles . | . . . Parts Fried . | . . . Impact Corruptions . | . . . Robots Melted . | . . . Combat Hostiles . | . . . Parts Melted 1 | . 1 . Heat Transferred 1719 | 150 1125 444 Parts Sabotaged . | . . . Parts Stolen . | . . . Parts Stripped . | . . . Power Chain Reactions . | . . . Alert | -11 -10 -10 ------- Run | Yrd Mat Min Maximum Alert Level 1 | . 1 . Low Security (%) 94 | 100 93 100 Level 1 5 | . 6 . Level 2 . | . . . Level 3 . | . . . Level 4 . | . . . Level 5 . | . . . High Security . | . . . Max Security . | . . . Peak Influence 209 | 5 209 63 Initial 63 | . . 63 Average 87 | 1 101 16 Influence Increases 754 | 15 703 36 Destroy 0b10 Robot/C 460 | . 440 20 Destroy 0b10 Robot/NC 60 | 15 45 . Destroy Leader 110 | . 110 . Allied During Kill 1 | . . 1 Successful Hack 40 | . 40 . Destroy Structure 8 | . 8 . Lose Combat Pursuer 75 | . 60 15 Influence Decreases 754 | 15 539 200 Entered New Map 101 | . . 101 Time Decay 653 | 15 539 99 Squads Dispatched 6 | . 6 . Investigation 4 | . 4 . Extermination . | . . . Reinforcement 2 | . 2 . Assault . | . . . Garrison . | . . . Intercept . | . . . Searches Triggered . | . . . Construction Impeded . | . . . Haulers Reinforced . | . . . Active Scanning Responses . | . . . Cargo Convoy Interrupts . | . . . Stealth | -11 -10 -10 --------- Run | Yrd Mat Min Distress Signals 2 | . 2 . Communications Jammed . | . . . Distress Signals . | . . . Times Spotted 44 | . 37 7 Peak Tracking Total 5 | . 4 5 Tactical Retreats 5 | . 4 1 Traps | -11 -10 -10 ------- Run | Yrd Mat Min Traps Triggered 8 | . 7 1 Indirectly . | . . . Trap Hack Attempts . | . . . Triggered . | . . . Disarmed . | . . . Reprogrammed . | . . . Reused . | . . . Traps Extracted . | . . . Installed . | . . . Triggered . | . . . Machines | -11 -10 -10 ---------- Run | Yrd Mat Min Machines Disabled . | . . . Max in Single Turn . | . . . Machines Repaired . | . . . Machines Dismantled . | . . . Machines Sabotaged . | . . . Overloaded Fab Kills . | . . . Hacking | -11 -10 -10 --------- Run | Yrd Mat Min Machines Accessed 8 | . 7 1 Terminals 5 | . 5 . Fabricators . | . . . Repair Stations 1 | . 1 . Recycling Units 1 | . 1 . Scanalyzers . | . . . Garrison Access . | . . . Total Hacks 21 | . 20 1 Successful 13 | . 12 1 Failed 8 | . 8 . Catastrophic 2 | . 2 . Database Lockouts . | . . . Manual 11 | . 11 . Terminals 15 | . 15 . Fabricators . | . . . Repair Stations 2 | . 2 . Recycling Units 3 | . 3 . Scanalyzers . | . . . Garrison Access . | . . . Terminal Hacks 5 | . 4 1 Prototype ID Bank 1 | . 1 . Open Door 1 | . . 1 Terminal Index 1 | . 1 . Transport Status 1 | . 1 . Zone Layout 1 | . 1 . Fabricator Hacks . | . . . Repair Station Hacks 2 | . 2 . Scan Component 1 | . 1 . Repair 1 | . 1 . Recycling Unit Hacks 2 | . 2 . Report Inventory 1 | . 1 . Retrieve Components 1 | . 1 . Scanalyzer . | . . . Garrison Access Hacks . | . . . Unauthorized Hacks 4 | . 4 . Terminals 4 | . 4 . Track 1 | . 1 . Botnet 3 | . 3 . Fabricators . | . . . Repair Stations . | . . . Recycling Units . | . . . Scanalyzers . | . . . Garrison Access . | . . . Data Cores Recovered . | . . . Used . | . . . Hacking Detections 7 | . 7 . Full Trace Events 1 | . 1 . Feedback Events . | . . . Feedback Blocked . | . . . Robot Schematics Acquired . | . . . Robots Built . | . . . Authchips . | . . . Time . | . . . Total Robot Build Rating . | . . . Part Schematics Acquired . | . . . Parts Built . | . . . Authchips . | . . . Time . | . . . Total Part Build Rating . | . . . Parts Repaired 1 | . 1 . Time 26 | . 26 . Parts Recycled . | . . . Recycled Matter . | . . . Retrieved Matter . | . . . Retrieved Components 9 | . 9 . Parts Scanalyzed . | . . . Part Schematics Acquired . | . . . Parts Damaged . | . . . Bothacking | -11 -10 -10 ------------ Run | Yrd Mat Min Used RIF Installer . | . . . Robots Hacked . | . . . Non-combat . | . . . Combat . | . . . Robot Hacks Applied . | . . . Relay Couplers Released . | . . . Fabnet Peak Effective % . | . . . Robots Rewired . | . . . Allies Hacked . | . . . Hacks Repelled . | . . . Allies | -11 -10 -10 -------- Run | Yrd Mat Min Total Allies 2 | . . 2 Largest Group 2 | . . 2 Highest-Rated Group 38 | . . 38 Highest-Rated Ally 31 | . . 31 Total Orders . | . . . Ally Attacks 3 | . . 3 Total Damage 41 | . . 41 Kills . | . . . Allies Corrupted . | . . . Allies Melted . | . . . Intel | -11 -10 -10 ------- Run | Yrd Mat Min Active Infowar (turns) 1461 | 21 1440 . Seismic 1461 | 21 1440 . Robot Analysis Total . | . . . Derelict Logs Recovered 1 | . . 1 Drone Launches . | . . . Drone Recoveries . | . . . Exploration | -11 -10 -10 ------------- Run | Yrd Mat Min Turns Passed 2957 | 139 2473 345 Spaces Moved 1382 | 74 1130 178 Core 24 | 24 . . Treads 1358 | 50 1130 178 Legs . | . . . Wheels . | . . . Hover . | . . . Flight . | . . . Fastest Speed 50 | 50 160 160 Average Speed 158 | 135 160 160 Slowest Speed 240 | 160 240 160 Overloaded Moves . | . . . Propulsion Burnouts . | . . . Robots Hopped . | . . . Potential Cave-ins . | . . . Cave-ins Triggered . | . . . Exploration Rate (%) 50 | 5 99 47 Regions Visited 2 Branch Regions 1 Pre-discovered Areas 1 | . . 1 Known Exits Taken . | . . . Unknown Exits Taken 2 | 1 1 . Scrap Searched 2 | . . 2 Spaces Dug . | . . . Terrain Destroyed . | . . . Melee . | . . . Projectile . | . . . AOE . | . . . Terrain Rammed . | . . . Walls Destroyed . | . . . Machines Disabled . | . . . Actions | -11 -10 -10 --------- Run | Yrd Mat Min Total 1898 | 93 1583 222 Wait 322 | . 296 26 Move 1380 | 73 1129 178 Hop . | . . . Pick Up 19 | 4 7 8 Fast Attach 15 | 7 8 . Attach . | . . . Detach . | . . . Swap 17 | . 16 1 Drop 17 | . 16 1 Fire 128 | 9 111 8 Melee . | . . . Ram . | . . . Kick . | . . . Crush . | . . . Escape Stasis . | . . . Rewire . | . . . Trap . | . . . Miscellaneous . | . . . Route ------- -11/Scrapyard -10/Materials (discovered 5 exits: [*Mat x3] / *Min / [*Sub]) -10/Mines (discovered 2 exits: [*Mat] / [*Sub]) History --------- Turn | Location | Event 11 | -11/Scrapyard | Discovered new exit (range 15) 140 | -11/Scrapyard | Entered Materials 312 | -10/Materials | Build established: Mutant 505 | -10/Materials | Discovered new exit (range 14) 1515 | -10/Materials | Core integrity fell below 50% 1721 | -10/Materials | Discovered new exit (range 16) 1981 | -10/Materials | Repaired Lgt. Treads 2023 | -10/Materials | Discovered new exit (range 9) 2298 | -10/Materials | Build established: Scavenger-Mutant 2342 | -10/Materials | Discovered new exit (range 5) 2493 | -10/Materials | Discovered new exit (range 14) 2613 | -10/Materials | Entered Mines 2651 | -10/Mines | Met a Derelict who couldn't figure out how to use a Trap Extractor 2712 | -10/Mines | Discovered new exit (range 9) 2854 | -10/Mines | Learned location of Storage (-8) 2857 | -10/Mines | Assembled infested the area 2933 | -10/Mines | Discovered new exit (range 8) 2940 | -10/Mines | Core integrity fell below 20% 2953 | -10/Mines | System corruption reached 10% 2958 | -10/Mines | Destroyed by as-40700 with Assembled Rifle Last Messages --------------- Found 66 Matter. ALERT: Infestation in the mines, dispatching Demolisher response squad. System corrupted: Component data lost. K-01 Serf collects debris. System corrupted: Energy discharge (-95). K-01 Serf collects debris. The unstable cave ceiling collapses. EXIT=FOUND The unstable cave ceiling collapses. as-35278 destroyed. K-01 Serf collects debris. Hacking Suite destroyed. Lgt. Treads destroyed. System corrupted by crushing effect (+5). System corrupted by crushing effect (+4). Lgt. Treads destroyed. The unstable cave ceiling collapses. K-01 Serf collects debris. Knocked back. Map ----- +----------------------------------------------------+ | | | ?????????????????????????????????????????????????? | | ?????????????????????????????????????????????????? | | ?????????????????????????????????????????????????? | | ?????????????????????????????????????????????????? | | ?????????????????????????????????????????????????? | | ?????????????????????????????????????????????????? | | ?????????????????????????????????????????????????? | | ?????????????????????????????????????????????????? | | ?????????????????????????????????????????????????? | | ?????????????????????????????????????????????????? | | ?????????????????????????????????????????????????? | | ?????????????????????????????????????????????????? | | ?????#??????????????????????####?????????????????? | | ????? ????????????????????? #?????????????????? | | ????? ???????????????????? #?????????????????? | | ????? ??????????????????? #?????????????????? | | ????? ??????????????????? #####?????????????? | | ???## ?????#####????????? #?????????????? | | ??## ?????## ##???????? #??? ?????????? | | ?## ????### ###?????? ## ?????????? | | ?# #??### ! ##????? ?????????? | | ?# #### #????? < #?????????? | | ?# ## ### #???## % #??????????? | | ## ###?## ##### #???????????? | | # #????# ## @ #???????????? | | ##???## k #???????????? | | ##??# #a # a ???????? | | #??# ## a ???????? | | = #?# # % #####????????? | | ##?# # # # ## #####????????????? | | ### ########??##?## # a##??#????????????????? | | ??## ##????????????# # # #????????????????????? | | ???## #?????????????# #????????????????????? | | ###?# #????????????# ###????????????????????? | | ### #??##?????# ## = # ??????????????????????? | | ## ## ## ##%# ##??????????????????????? | | % ? * <#???????????????????????? | | !% ? ???????????????????????? | | #### #???# ???????????????????????? | | #?????# ## #????# ???????????????????????? | | # ##?????????#????????## ???????????????????????? | | # ########???????????????????????????????????????? | | # #?????????????????????????????????????? | | # ########???????????????????????????????????????? | | # #??????????????????????????????????????????????? | | # #??????????????????????????????????????????????? | | #%#??????????????????????????????????????????????? | | #%#??????????????????????????????????????????????? | | =#??????????????????????????????????????????????? | +----------------------------------------------------+ Best States ------------- Heat Dissipation 25 Energy Generation 10 Energy Capacity 250 Matter Stores 300 Matter Capacity 300 Sight Range 16 Terrain Scan Density 10 Evasion (%) 50 Recoil Reduction 2 Offensive Hacking 10 Item Schematics ----------------- None Robot Schematics ------------------ None Fabricated ------------ Nothing Repaired ---------- Lgt. Treads | 27% | -10/Materials Alien Tech Used ----------------- None Achievements -------------- None Challenges ------------ None Game ------ Seed HeartDisruptionEdition Manual? 0 Play Time 00:22:07 Cumulative 125.7 hours Start 2025.06.07 @ 15:32:38 End 2025.06.07 @ 16:07:08 Sessions 1 Manual Loads 0 Difficulty Rogue Special Mode None Game No. 159 Rogue 159 Adventurer 0 Explorer 0 Win Type - Total 0 Types 0/0/0/0/0/0/0/0/0/0 Lore% 40 Gallery% 37 Achievement% 33 Wizard Run 0 Options --------- Layout 1 ASCII 0 Keyboard 0 Movement Mouse Keybinds 0 Fullscreen 1 Font 32/SmallcapsGlow Map View 50x40 Zoom Use 0% Tactical HUD 0 Map Filters NONE Filters NONE Steam 1 RUN: a6a3a1c9-a9c6-4291-baef-261e42f9c2ae